[Event "Early-Titled-Tuesday-Blitz-March-19-2024"]
[Site "Chess.com"]
[Date "2024.03.19"]
[Round "2"]
[White "MasterKroket"]
[Black "Navyblue1"]
[Result "1-0"]
[WhiteElo "2506"]
[BlackElo "2211"]
[TimeControl "180+1"]
[EndTime "8:16:10 PDT"]
[Termination "MasterKroket won by resignation"]

1. e4 {[%clk 0:03:00.9]} 1... c5 {[%clk 0:02:59.2]} 2. Nf3 {[%clk 0:03:00.5]}
2... d6 {[%clk 0:02:59]} 3. d4 {[%clk 0:03:01.1]} 3... cxd4 {[%clk 0:02:59.5]}
4. Nxd4 {[%clk 0:03:01.8]} 4... Nf6 {[%clk 0:03:00]} 5. Nc3 {[%clk 0:03:02.5]}
5... a6 {[%clk 0:03:00.5]} 6. Be3 {[%clk 0:03:02.6]} 6... e5 {[%clk 0:02:59.4]}
7. Nb3 {[%clk 0:03:03]} 7... Be6 {[%clk 0:02:56.2]} 8. f3 {[%clk 0:03:00.6]}
8... h5 {[%clk 0:02:55.9]} 9. Qd2 {[%clk 0:03:00.7]} 9... Be7 {[%clk 0:02:55.1]}
10. O-O-O {[%clk 0:03:00.7]} 10... Nbd7 {[%clk 0:02:55.3]} 11. Kb1 {[%clk
0:03:00.7]} 11... Rc8 {[%clk 0:02:55.2]} 12. Nd5 {[%clk 0:03:00.9]} 12... Nxd5
{[%clk 0:02:54.4]} 13. exd5 {[%clk 0:03:01.4]} 13... Bf5 {[%clk 0:02:54.4]} 14.
Bd3 {[%clk 0:03:02.1]} 14... Bxd3 {[%clk 0:02:53.1]} 15. Qxd3 {[%clk 0:03:03]}
15... Qc7 {[%clk 0:02:50.4]} 16. Rc1 {[%clk 0:02:57.2]} 16... b5 {[%clk
0:02:25.2]} 17. Nd2 {[%clk 0:02:50.5]} 17... Nf6 {[%clk 0:01:59.1]} 18. c4
{[%clk 0:02:47.4]} 18... b4 {[%clk 0:01:50.2]} 19. Rhg1 {[%clk 0:02:22.5]} 19...
Qd7 {[%clk 0:01:25.5]} 20. Nb3 {[%clk 0:01:59.2]} 20... Bd8 {[%clk 0:01:06.9]}
21. Rgd1 {[%clk 0:01:53.8]} 21... a5 {[%clk 0:00:57.6]} 22. c5 {[%clk
0:01:54.2]} 22... dxc5 {[%clk 0:00:37.9]} 23. Nxc5 {[%clk 0:01:54]} 23... Qd6
{[%clk 0:00:21.1]} 24. Ne4 {[%clk 0:01:54.3]} 24... Rxc1+ {[%clk 0:00:18.8]} 25.
Rxc1 {[%clk 0:01:55.2]} 25... Nxe4 {[%clk 0:00:18.9]} 26. fxe4 {[%clk
0:01:55.2]} 26... Qd7 {[%clk 0:00:15.8]} 27. Bc5 {[%clk 0:01:52]} 27... Be7
{[%clk 0:00:12.8]} 28. Bxe7 {[%clk 0:01:49.8]} 28... Kxe7 {[%clk 0:00:12.8]} 29.
Qg3 {[%clk 0:01:44.5]} 29... g6 {[%clk 0:00:10.9]} 30. Qxe5+ {[%clk 0:01:44.4]}
1-0

[Event "Early-Titled-Tuesday-Blitz-March-19-2024"]
[Site "Chess.com"]
[Date "2024.03.19"]
[Round "2"]
[White "Nuvas"]
[Black "DrCeltic"]
[Result "1-0"]
[WhiteElo "2830"]
[BlackElo "2582"]
[TimeControl "180+1"]
[EndTime "8:16:11 PDT"]
[Termination "Nuvas won by resignation"]

1. d4 {[%clk 0:03:00.9]} 1... Nf6 {[%clk 0:02:59.3]} 2. c4 {[%clk 0:03:01.2]}
2... c6 {[%clk 0:02:59.7]} 3. Nc3 {[%clk 0:03:00.3]} 3... d5 {[%clk 0:03:00.6]}
4. cxd5 {[%clk 0:03:01]} 4... cxd5 {[%clk 0:03:01]} 5. Bf4 {[%clk 0:03:01.7]}
5... Nc6 {[%clk 0:03:01.3]} 6. e3 {[%clk 0:03:02.3]} 6... e6 {[%clk 0:03:01.7]}
7. Bd3 {[%clk 0:03:02.4]} 7... Be7 {[%clk 0:03:02]} 8. Rc1 {[%clk 0:03:01.7]}
8... O-O {[%clk 0:03:02.5]} 9. h3 {[%clk 0:03:01.6]} 9... Bd7 {[%clk 0:03:02.4]}
10. Nf3 {[%clk 0:03:01.5]} 10... Rc8 {[%clk 0:03:02.6]} 11. O-O {[%clk
0:03:01.5]} 11... a6 {[%clk 0:03:01.7]} 12. Qe2 {[%clk 0:03:00.3]} 12... Qb6
{[%clk 0:02:55.9]} 13. a3 {[%clk 0:02:49.1]} 13... Na5 {[%clk 0:02:53.4]} 14.
Ne5 {[%clk 0:02:49.1]} 14... Be8 {[%clk 0:02:37.8]} 15. Nxd5 {[%clk 0:02:25.7]}
15... Nxd5 {[%clk 0:02:37.2]} 16. Rxc8 {[%clk 0:02:25.1]} 16... Nc6 {[%clk
0:02:37.7]} 17. Nxc6 {[%clk 0:02:20.6]} 17... bxc6 {[%clk 0:02:35.8]} 18. Bg3
{[%clk 0:02:13.7]} 18... a5 {[%clk 0:02:32.1]} 19. Rc1 {[%clk 0:02:11.9]} 19...
Qb7 {[%clk 0:02:21.1]} 20. Rb8 {[%clk 0:02:11]} 20... Qa7 {[%clk 0:02:19.6]} 21.
Ba6 {[%clk 0:01:49]} 21... f5 {[%clk 0:02:11.3]} 22. Rb7 {[%clk 0:01:46.1]}
22... Qa8 {[%clk 0:02:11.9]} 23. Be5 {[%clk 0:01:36.5]} 23... Bh5 {[%clk
0:02:02.7]} 24. Qxh5 {[%clk 0:01:15.5]} 24... Qxa6 {[%clk 0:02:02.2]} 25. Rb8
{[%clk 0:01:16.2]} 25... Rxb8 {[%clk 0:01:43.4]} 26. Bxb8 {[%clk 0:01:17.1]}
26... Nf6 {[%clk 0:01:43.6]} 27. Qd1 {[%clk 0:01:03.3]} 27... Qb6 {[%clk
0:01:42.8]} 28. Be5 {[%clk 0:01:03.4]} 28... Qxb2 {[%clk 0:01:41.9]} 29. a4
{[%clk 0:01:00.3]} 29... Ne4 {[%clk 0:01:36.5]} 30. Qc2 {[%clk 0:01:00.6]} 30...
Qa3 {[%clk 0:01:29.1]} 31. Qxc6 {[%clk 0:00:59.9]} 31... Kf7 {[%clk 0:01:18.2]}
32. d5 {[%clk 0:01:00.2]} 32... Qa2 {[%clk 0:01:11.6]} 33. Qxe6+ {[%clk
0:00:59.9]} 1-0

[Event "Early-Titled-Tuesday-Blitz-March-19-2024"]
[Site "Chess.com"]
[Date "2024.03.19"]
[Round "2"]
[White "Sam_ChessMood"]
[Black "arenal72"]
[Result "0-1"]
[WhiteElo "2933"]
[BlackElo "2664"]
[TimeControl "180+1"]
[EndTime "8:16:12 PDT"]
[Termination "arenal72 won by resignation"]

1. d4 {[%clk 0:02:59.9]} 1... d6 {[%clk 0:02:58.4]} 2. e4 {[%clk 0:02:59.1]}
2... Nf6 {[%clk 0:02:56.8]} 3. Nc3 {[%clk 0:02:59.4]} 3... e5 {[%clk 0:02:56.8]}
4. Nf3 {[%clk 0:02:59.6]} 4... exd4 {[%clk 0:02:56.1]} 5. Nxd4 {[%clk 0:02:58]}
5... Be7 {[%clk 0:02:56.6]} 6. Bf4 {[%clk 0:02:54]} 6... O-O {[%clk 0:02:55.7]}
7. Qd2 {[%clk 0:02:54.2]} 7... d5 {[%clk 0:02:55.5]} 8. Ndb5 {[%clk 0:02:47.6]}
8... Bb4 {[%clk 0:02:53.3]} 9. O-O-O {[%clk 0:02:32.5]} 9... c6 {[%clk
0:02:47.7]} 10. Nc7 {[%clk 0:02:29.5]} 10... Nxe4 {[%clk 0:02:46.5]} 11. Qe3
{[%clk 0:02:27.1]} 11... Nxc3 {[%clk 0:02:32.8]} 12. bxc3 {[%clk 0:02:26.9]}
12... Ba3+ {[%clk 0:02:32.8]} 13. Kd2 {[%clk 0:02:27.1]} 13... Nd7 {[%clk
0:02:28.7]} 14. Nxa8 {[%clk 0:02:24.7]} 14... Bc5 {[%clk 0:02:24]} 15. Qg3
{[%clk 0:02:20]} 15... Nf6 {[%clk 0:02:21.6]} 16. Bd3 {[%clk 0:02:19.5]} 16...
Nh5 {[%clk 0:02:20.8]} 17. Qf3 {[%clk 0:02:00]} 17... Nxf4 {[%clk 0:02:19.2]}
18. Qxf4 {[%clk 0:02:00.5]} 18... Bd6 {[%clk 0:02:19.2]} 19. Qd4 {[%clk
0:00:52.5]} 19... Qg5+ {[%clk 0:02:13.2]} 20. Ke2 {[%clk 0:00:52.9]} 20... Be5
{[%clk 0:01:35]} 21. Qxa7 {[%clk 0:00:44.9]} 21... Qxg2 {[%clk 0:01:27.9]} 22.
Rdg1 {[%clk 0:00:23.9]} 22... Bg4+ {[%clk 0:01:21.5]} 23. Kd2 {[%clk 0:00:22.1]}
23... Bf4+ {[%clk 0:01:19.3]} 0-1

[Event "Early-Titled-Tuesday-Blitz-March-19-2024"]
[Site "Chess.com"]
[Date "2024.03.19"]
[Round "2"]
[White "Jojo_898"]
[Black "enriquebutti"]
[Result "0-1"]
[WhiteElo "2472"]
[BlackElo "2171"]
[TimeControl "180+1"]
[EndTime "8:16:12 PDT"]
[Termination "enriquebutti won by resignation"]

1. e4 {[%clk 0:03:00.9]} 1... e6 {[%clk 0:02:58.7]} 2. d4 {[%clk 0:03:00.7]}
2... d5 {[%clk 0:02:58.4]} 3. Nd2 {[%clk 0:03:01.3]} 3... Nf6 {[%clk 0:02:57.4]}
4. exd5 {[%clk 0:02:56.8]} 4... exd5 {[%clk 0:02:56.5]} 5. Bd3 {[%clk
0:02:56.2]} 5... Nc6 {[%clk 0:02:52.8]} 6. Ngf3 {[%clk 0:02:56.1]} 6... Bg4
{[%clk 0:02:51.5]} 7. h3 {[%clk 0:02:51.5]} 7... Bh5 {[%clk 0:02:49.6]} 8. c3
{[%clk 0:02:48.1]} 8... Qd7 {[%clk 0:02:48.4]} 9. O-O {[%clk 0:02:47.7]} 9...
O-O-O {[%clk 0:02:44.2]} 10. Qc2 {[%clk 0:02:47.8]} 10... Bg6 {[%clk 0:02:42]}
11. Ne5 {[%clk 0:02:44.7]} 11... Nxe5 {[%clk 0:02:36.9]} 12. dxe5 {[%clk
0:02:44.7]} 12... Ne8 {[%clk 0:02:31.3]} 13. Nf3 {[%clk 0:02:41.3]} 13... c5
{[%clk 0:02:28]} 14. Be3 {[%clk 0:02:37.4]} 14... Nc7 {[%clk 0:02:27]} 15. b4
{[%clk 0:02:35.1]} 15... Bxd3 {[%clk 0:02:15]} 16. Qxd3 {[%clk 0:02:33.2]} 16...
c4 {[%clk 0:02:15.9]} 17. Qd2 {[%clk 0:02:29.1]} 17... Qa4 {[%clk 0:02:08.9]}
18. Nd4 {[%clk 0:02:21.5]} 18... Ne6 {[%clk 0:02:05.1]} 19. Nf5 {[%clk
0:02:18.7]} 19... g6 {[%clk 0:02:00.3]} 20. Nd4 {[%clk 0:02:13.3]} 20... Ng7
{[%clk 0:01:47.6]} 21. Qe2 {[%clk 0:02:05.5]} 21... Be7 {[%clk 0:01:39.5]} 22.
Qg4+ {[%clk 0:02:05]} 22... Qd7 {[%clk 0:01:38.7]} 23. Qf3 {[%clk 0:02:02]}
23... Rdf8 {[%clk 0:01:34.2]} 24. a4 {[%clk 0:02:02.1]} 24... f6 {[%clk
0:01:32.2]} 25. exf6 {[%clk 0:02:00.4]} 25... Bxf6 {[%clk 0:01:29.7]} 26. Qd1
{[%clk 0:01:47]} 26... Rhg8 {[%clk 0:01:28.1]} 27. Nb5 {[%clk 0:01:46.8]} 27...
b6 {[%clk 0:01:26.5]} 28. Qg4 {[%clk 0:01:38.5]} 28... Nf5 {[%clk 0:01:24]} 29.
Bf4 {[%clk 0:01:31.8]} 29... h5 {[%clk 0:01:17.5]} 30. Qf3 {[%clk 0:01:30.4]}
30... g5 {[%clk 0:01:15.6]} 31. Bh2 {[%clk 0:01:29.3]} 31... g4 {[%clk
0:01:15.1]} 32. hxg4 {[%clk 0:01:28.6]} 32... hxg4 {[%clk 0:01:11.5]} 33. Qf4
{[%clk 0:01:28.5]} 33... g3 {[%clk 0:01:08.9]} 34. fxg3 {[%clk 0:01:23.5]} 34...
Bg5 {[%clk 0:01:06.8]} 35. Qg4 {[%clk 0:01:14]} 35... Be3+ {[%clk 0:01:05.8]}
0-1

[Event "Early-Titled-Tuesday-Blitz-March-19-2024"]
[Site "Chess.com"]
[Date "2024.03.19"]
[Round "2"]
[White "Tssunami"]
[Black "JiiHart"]
[Result "1-0"]
[WhiteElo "2494"]
[BlackElo "2197"]
[TimeControl "180+1"]
[EndTime "8:16:19 PDT"]
[Termination "Tssunami won by resignation"]

1. e4 {[%clk 0:02:58.9]} 1... c5 {[%clk 0:02:58.9]} 2. Nf3 {[%clk 0:02:57.3]}
2... Nc6 {[%clk 0:02:58.4]} 3. Bb5 {[%clk 0:02:56.9]} 3... e6 {[%clk 0:02:58.1]}
4. O-O {[%clk 0:02:53.4]} 4... Nge7 {[%clk 0:02:57]} 5. c3 {[%clk 0:02:52.4]}
5... a6 {[%clk 0:02:54.8]} 6. Ba4 {[%clk 0:02:52.5]} 6... b5 {[%clk 0:02:34.6]}
7. Bc2 {[%clk 0:02:52.5]} 7... c4 {[%clk 0:02:34.6]} 8. d4 {[%clk 0:02:47.4]}
8... cxd3 {[%clk 0:02:33.2]} 9. Qxd3 {[%clk 0:02:47.5]} 9... d6 {[%clk
0:02:24.5]} 10. a4 {[%clk 0:02:47]} 10... b4 {[%clk 0:02:00.2]} 11. Nbd2 {[%clk
0:02:43.4]} 11... Ng6 {[%clk 0:01:40.9]} 12. Nc4 {[%clk 0:02:40.6]} 12... d5
{[%clk 0:01:14.6]} 13. exd5 {[%clk 0:02:35.1]} 13... exd5 {[%clk 0:00:40.7]} 14.
Ne3 {[%clk 0:02:28.8]} 14... Be6 {[%clk 0:00:37]} 15. Nf5 {[%clk 0:02:26.6]}
15... Qd7 {[%clk 0:00:27]} 16. Re1 {[%clk 0:02:24.2]} 16... Nge7 {[%clk
0:00:20.1]} 17. N5d4 {[%clk 0:02:12.2]} 17... Nxd4 {[%clk 0:00:19.7]} 18. Nxd4
{[%clk 0:02:11.8]} 18... bxc3 {[%clk 0:00:16.8]} 19. bxc3 {[%clk 0:02:10.4]}
19... Nc6 {[%clk 0:00:16.4]} 20. Nf5 {[%clk 0:02:07]} 20... Be7 {[%clk
0:00:15.7]} 21. Nxg7+ {[%clk 0:02:06.6]} 21... Kd8 {[%clk 0:00:15.8]} 22. Nxe6+
{[%clk 0:01:59.2]} 22... fxe6 {[%clk 0:00:15.7]} 23. Qh3 {[%clk 0:01:50]} 23...
Rf8 {[%clk 0:00:15.3]} 24. Rxe6 {[%clk 0:01:47.2]} 24... Bc5 {[%clk 0:00:13.9]}
25. Be3 {[%clk 0:01:45.9]} 25... Bxe3 {[%clk 0:00:12.9]} 26. Qxe3 {[%clk
0:01:45.5]} 26... Kc7 {[%clk 0:00:11.6]} 27. Re1 {[%clk 0:01:39.8]} 27... Rae8
{[%clk 0:00:11.4]} 28. Rxe8 {[%clk 0:01:39.3]} 1-0

[Event "Early-Titled-Tuesday-Blitz-March-19-2024"]
[Site "Chess.com"]
[Date "2024.03.19"]
[Round "2"]
[White "ActorXu"]
[Black "secrethawk1"]
[Result "1-0"]
[WhiteElo "2847"]
[BlackElo "2437"]
[TimeControl "180+1"]
[EndTime "8:16:21 PDT"]
[Termination "ActorXu won on time"]

1. e4 {[%clk 0:03:00.9]} 1... c6 {[%clk 0:02:57.7]} 2. d4 {[%clk 0:03:00.5]}
2... d5 {[%clk 0:02:42]} 3. e5 {[%clk 0:03:00.7]} 3... Bf5 {[%clk 0:02:41.2]} 4.
h4 {[%clk 0:03:00.6]} 4... h5 {[%clk 0:02:40.3]} 5. Bd3 {[%clk 0:03:00.8]} 5...
Bxd3 {[%clk 0:02:38.5]} 6. Qxd3 {[%clk 0:03:01.5]} 6... e6 {[%clk 0:02:39.4]} 7.
Nf3 {[%clk 0:03:00.4]} 7... c5 {[%clk 0:02:37.6]} 8. O-O {[%clk 0:02:52.1]} 8...
Nc6 {[%clk 0:02:35.4]} 9. Bg5 {[%clk 0:02:51.7]} 9... Qb6 {[%clk 0:02:26.7]} 10.
Nbd2 {[%clk 0:02:37.8]} 10... cxd4 {[%clk 0:02:19.5]} 11. Nb3 {[%clk 0:02:35.5]}
11... Be7 {[%clk 0:02:09.3]} 12. Nbxd4 {[%clk 0:02:30.8]} 12... Bxg5 {[%clk
0:01:56.3]} 13. hxg5 {[%clk 0:02:30.2]} 13... Nge7 {[%clk 0:01:54.1]} 14. g6
{[%clk 0:02:25.9]} 14... Nxg6 {[%clk 0:01:33.6]} 15. Nxe6 {[%clk 0:02:25.8]}
15... Ncxe5 {[%clk 0:01:21.3]} 16. Nxg7+ {[%clk 0:02:21.6]} 16... Kf8 {[%clk
0:01:20.5]} 17. Nxe5 {[%clk 0:02:21.5]} 17... Nxe5 {[%clk 0:01:21.4]} 18. Qxd5
{[%clk 0:02:19.6]} 18... Qf6 {[%clk 0:01:18.4]} 19. Rae1 {[%clk 0:02:18]} 19...
Nf3+ {[%clk 0:00:58.5]} 20. Qxf3 {[%clk 0:02:14.1]} 20... Qxf3 {[%clk
0:00:51.2]} 21. gxf3 {[%clk 0:02:14.1]} 21... Kxg7 {[%clk 0:00:52.1]} 22. Re7
{[%clk 0:02:14.1]} 22... Rab8 {[%clk 0:00:49.6]} 23. Rd1 {[%clk 0:02:13.4]}
23... Rhd8 {[%clk 0:00:24]} 24. Rxd8 {[%clk 0:02:10.8]} 24... Rxd8 {[%clk
0:00:21.2]} 25. Rxb7 {[%clk 0:02:10.2]} 25... a5 {[%clk 0:00:19.2]} 26. Rb5
{[%clk 0:02:10.1]} 26... a4 {[%clk 0:00:17.7]} 27. Rxh5 {[%clk 0:02:07.3]} 27...
Rd1+ {[%clk 0:00:17]} 28. Kg2 {[%clk 0:02:07.1]} 28... Ra1 {[%clk 0:00:15.6]}
29. a3 {[%clk 0:02:07]} 29... Rb1 {[%clk 0:00:09.3]} 30. Rb5 {[%clk 0:02:07.2]}
30... Rc1 {[%clk 0:00:09.3]} 31. c3 {[%clk 0:02:06.5]} 31... Kg6 {[%clk
0:00:06.4]} 32. Rb4 {[%clk 0:02:06.7]} 32... f5 {[%clk 0:00:06.8]} 33. Rxa4
{[%clk 0:02:07.2]} 33... Kg5 {[%clk 0:00:05.9]} 34. Rb4 {[%clk 0:02:07.9]} 34...
f4 {[%clk 0:00:06.2]} 35. a4 {[%clk 0:02:05.6]} 1-0

[Event "Early-Titled-Tuesday-Blitz-March-19-2024"]
[Site "Chess.com"]
[Date "2024.03.19"]
[Round "2"]
[White "Al_Shima"]
[Black "Bala-Afiada"]
[Result "1-0"]
[WhiteElo "2451"]
[BlackElo "1861"]
[TimeControl "180+1"]
[EndTime "8:16:25 PDT"]
[Termination "Al_Shima won on time"]

1. e4 {[%clk 0:02:59.1]} 1... c5 {[%clk 0:02:56.5]} 2. Nf3 {[%clk 0:02:59.4]}
2... Nc6 {[%clk 0:02:56.8]} 3. Bb5 {[%clk 0:02:59.1]} 3... d6 {[%clk 0:02:57]}
4. O-O {[%clk 0:02:58.1]} 4... Nf6 {[%clk 0:02:52.8]} 5. Re1 {[%clk 0:02:58]}
5... e5 {[%clk 0:02:51.9]} 6. c3 {[%clk 0:02:57.5]} 6... Bg4 {[%clk 0:02:50.7]}
7. h3 {[%clk 0:02:56.5]} 7... Bxf3 {[%clk 0:02:50.5]} 8. Qxf3 {[%clk 0:02:57.4]}
8... Be7 {[%clk 0:02:49.1]} 9. d3 {[%clk 0:02:57.6]} 9... O-O {[%clk 0:02:47.8]}
10. Bg5 {[%clk 0:02:56.3]} 10... Qc7 {[%clk 0:02:47.4]} 11. Nd2 {[%clk 0:02:56]}
11... a6 {[%clk 0:02:47.6]} 12. Bc4 {[%clk 0:02:43.3]} 12... b5 {[%clk
0:02:46.1]} 13. Bb3 {[%clk 0:02:43.4]} 13... h6 {[%clk 0:02:39.7]} 14. Bh4
{[%clk 0:02:38.3]} 14... Nh7 {[%clk 0:02:32.6]} 15. Bg3 {[%clk 0:02:33.9]} 15...
Ng5 {[%clk 0:02:30.9]} 16. Qe2 {[%clk 0:02:34.2]} 16... b4 {[%clk 0:02:21.1]}
17. Nf1 {[%clk 0:02:33.8]} 17... a5 {[%clk 0:02:18.1]} 18. Ne3 {[%clk
0:02:31.5]} 18... a4 {[%clk 0:02:09.6]} 19. Bd5 {[%clk 0:02:30.9]} 19... Rab8
{[%clk 0:01:59.4]} 20. Nf5 {[%clk 0:02:30.1]} 20... Bf6 {[%clk 0:01:49.3]} 21.
Qg4 {[%clk 0:02:26]} 21... Ne7 {[%clk 0:01:34.4]} 22. h4 {[%clk 0:01:56.5]}
22... Nh7 {[%clk 0:00:12.2]} 23. Nxh6+ {[%clk 0:01:50.8]} 23... Kh8 {[%clk
0:00:12.6]} 24. Nxf7+ {[%clk 0:01:49]} 24... Rxf7 {[%clk 0:00:12]} 25. Bxf7
{[%clk 0:01:49.9]} 25... Ng8 {[%clk 0:00:07.8]} 26. Bxg8 {[%clk 0:01:47.2]}
26... Kxg8 {[%clk 0:00:05]} 27. h5 {[%clk 0:01:45.3]} 27... Rf8 {[%clk
0:00:04.4]} 28. Bh4 {[%clk 0:01:45.1]} 28... Bxh4 {[%clk 0:00:03.7]} 29. Qxh4
{[%clk 0:01:46]} 29... Qf7 {[%clk 0:00:03.2]} 30. Re3 {[%clk 0:01:45.1]} 30...
Nf6 {[%clk 0:00:02.6]} 31. h6 {[%clk 0:01:43.5]} 1-0

[Event "Early-Titled-Tuesday-Blitz-March-19-2024"]
[Site "Chess.com"]
[Date "2024.03.19"]
[Round "2"]
[White "ImportedItalianMaple"]
[Black "DarZay"]
[Result "0-1"]
[WhiteElo "2536"]
[BlackElo "2339"]
[TimeControl "180+1"]
[EndTime "8:16:27 PDT"]
[Termination "DarZay won by resignation"]

1. Nf3 {[%clk 0:02:57.5]} 1... Nf6 {[%clk 0:02:59.2]} 2. g3 {[%clk 0:02:57.8]}
2... d5 {[%clk 0:02:58.8]} 3. Bg2 {[%clk 0:02:58.2]} 3... c5 {[%clk 0:02:58.6]}
4. O-O {[%clk 0:02:58.8]} 4... Nc6 {[%clk 0:02:58.5]} 5. d4 {[%clk 0:02:59.4]}
5... e6 {[%clk 0:02:58.1]} 6. c4 {[%clk 0:02:59]} 6... Be7 {[%clk 0:02:57.4]} 7.
cxd5 {[%clk 0:02:57.5]} 7... exd5 {[%clk 0:02:56.6]} 8. dxc5 {[%clk 0:02:57.2]}
8... Bxc5 {[%clk 0:02:56.2]} 9. a3 {[%clk 0:02:57.7]} 9... a6 {[%clk 0:02:54.2]}
10. b4 {[%clk 0:02:57.8]} 10... Bb6 {[%clk 0:02:52.8]} 11. Nc3 {[%clk
0:02:57.6]} 11... h6 {[%clk 0:02:52.3]} 12. Bb2 {[%clk 0:02:54.4]} 12... Be6
{[%clk 0:02:51.6]} 13. Na4 {[%clk 0:02:51.7]} 13... Ba7 {[%clk 0:02:49]} 14. Rc1
{[%clk 0:02:51.7]} 14... O-O {[%clk 0:02:47.7]} 15. Nc5 {[%clk 0:02:51.6]} 15...
Ne4 {[%clk 0:02:32.9]} 16. Nxb7 {[%clk 0:02:41.9]} 16... Qc7 {[%clk 0:02:18.9]}
17. Na5 {[%clk 0:02:32.1]} 17... Bxf2+ {[%clk 0:02:02.4]} 18. Rxf2 {[%clk
0:02:31]} 18... Qb6 {[%clk 0:02:02.3]} 19. Nd4 {[%clk 0:02:20]} 19... Nxf2
{[%clk 0:01:59.8]} 20. Kxf2 {[%clk 0:02:19.6]} 20... Nxa5 {[%clk 0:01:58.8]} 21.
e3 {[%clk 0:01:54.1]} 21... Nc4 {[%clk 0:01:57.9]} 22. Bc3 {[%clk 0:01:54.8]}
22... Qd8 {[%clk 0:01:51]} 23. Qd3 {[%clk 0:01:52]} 23... Qd6 {[%clk 0:01:43.7]}
24. Kg1 {[%clk 0:01:50.9]} 24... Rac8 {[%clk 0:01:37.5]} 25. a4 {[%clk
0:01:46.7]} 25... Ne5 {[%clk 0:01:35.2]} 26. Qd2 {[%clk 0:01:45.1]} 26... Ng4
{[%clk 0:01:31.3]} 27. Nxe6 {[%clk 0:01:35.3]} 27... fxe6 {[%clk 0:01:24.2]} 28.
Qd4 {[%clk 0:01:25.7]} 28... Nf6 {[%clk 0:01:23.5]} 29. e4 {[%clk 0:01:25.3]}
29... e5 {[%clk 0:01:21.5]} 30. Qd3 {[%clk 0:01:14.3]} 30... Qb6+ {[%clk
0:01:17.6]} 31. Kh1 {[%clk 0:01:14.1]} 31... d4 {[%clk 0:01:16.4]} 32. Bd2
{[%clk 0:01:02.3]} 32... Rxc1+ {[%clk 0:01:15.8]} 33. Bxc1 {[%clk 0:01:03.2]}
33... Qxb4 {[%clk 0:01:09]} 34. Qxa6 {[%clk 0:01:03]} 34... Qe1+ {[%clk
0:01:06.5]} 35. Qf1 {[%clk 0:01:03.6]} 35... Qxf1+ {[%clk 0:01:05.9]} 36. Bxf1
{[%clk 0:01:04.5]} 36... Nxe4 {[%clk 0:01:06.1]} 37. Bc4+ {[%clk 0:01:05.2]}
37... Kh8 {[%clk 0:01:05.7]} 38. Kg2 {[%clk 0:01:05.9]} 38... Rc8 {[%clk
0:01:02.7]} 39. Bd5 {[%clk 0:01:05.1]} 39... Nf6 {[%clk 0:01:01.8]} 0-1

[Event "Early-Titled-Tuesday-Blitz-March-19-2024"]
[Site "Chess.com"]
[Date "2024.03.19"]
[Round "2"]
[White "gorgeous1083"]
[Black "ccccvhhhj"]
[Result "0-1"]
[WhiteElo "2071"]
[BlackElo "2465"]
[TimeControl "180+1"]
[EndTime "8:16:32 PDT"]
[Termination "ccccvhhhj won on time"]

1. d4 {[%clk 0:03:00.9]} 1... e5 {[%clk 0:02:59.9]} 2. dxe5 {[%clk 0:02:57.3]}
2... d6 {[%clk 0:03:00.5]} 3. exd6 {[%clk 0:02:56.9]} 3... Bxd6 {[%clk
0:03:01.4]} 4. Nf3 {[%clk 0:02:56.9]} 4... Nc6 {[%clk 0:03:01.9]} 5. Nc3 {[%clk
0:02:56.9]} 5... Bg4 {[%clk 0:03:02.5]} 6. e3 {[%clk 0:02:52.2]} 6... Qe7 {[%clk
0:03:02.9]} 7. Be2 {[%clk 0:02:48.5]} 7... O-O-O {[%clk 0:03:03.4]} 8. Bd2
{[%clk 0:02:44.8]} 8... Nf6 {[%clk 0:03:03.9]} 9. h3 {[%clk 0:02:41.5]} 9... Bf5
{[%clk 0:03:01]} 10. Bd3 {[%clk 0:02:37.4]} 10... Bxd3 {[%clk 0:02:51.9]} 11.
cxd3 {[%clk 0:02:37]} 11... Ne5 {[%clk 0:02:52.8]} 12. d4 {[%clk 0:02:29.1]}
12... Nc4 {[%clk 0:02:51.9]} 13. Qc2 {[%clk 0:02:15.8]} 13... Kb8 {[%clk
0:02:48.8]} 14. O-O {[%clk 0:02:03]} 14... h6 {[%clk 0:02:48.9]} 15. b3 {[%clk
0:02:00.3]} 15... Nxd2 {[%clk 0:02:49.2]} 16. Nxd2 {[%clk 0:01:57.4]} 16... g5
{[%clk 0:02:50.1]} 17. Nce4 {[%clk 0:01:54.3]} 17... Nd5 {[%clk 0:02:42.2]} 18.
Nxd6 {[%clk 0:01:51.3]} 18... Qxd6 {[%clk 0:02:41.6]} 19. Rfc1 {[%clk
0:01:43.9]} 19... h5 {[%clk 0:02:39.7]} 20. Qc5 {[%clk 0:01:42.7]} 20... Qe6
{[%clk 0:02:37.5]} 21. e4 {[%clk 0:01:35.3]} 21... Nf4 {[%clk 0:02:36.6]} 22.
Qxc7+ {[%clk 0:01:32.5]} 22... Ka8 {[%clk 0:02:37.2]} 23. Qc4 {[%clk 0:01:21.6]}
23... Qf6 {[%clk 0:02:30]} 24. e5 {[%clk 0:01:07.8]} 24... Qf5 {[%clk
0:02:27.3]} 25. Qc2 {[%clk 0:00:44.4]} 25... Qe6 {[%clk 0:02:24.6]} 26. Qe4
{[%clk 0:00:38.6]} 26... Rxd4 {[%clk 0:02:20.7]} 27. Qe3 {[%clk 0:00:21.4]}
27... Rhd8 {[%clk 0:02:15.8]} 28. Nf3 {[%clk 0:00:18.5]} 28... Rd3 {[%clk
0:02:16.1]} 29. Qe4 {[%clk 0:00:14.2]} 29... f5 {[%clk 0:01:40.9]} 30. Qe1
{[%clk 0:00:08.3]} 30... Nxh3+ {[%clk 0:01:37.7]} 0-1

[Event "Early-Titled-Tuesday-Blitz-March-19-2024"]
[Site "Chess.com"]
[Date "2024.03.19"]
[Round "2"]
[White "LuisFSiles"]
[Black "chess94cu"]
[Result "0-1"]
[WhiteElo "2282"]
[BlackElo "2634"]
[TimeControl "180+1"]
[EndTime "8:16:33 PDT"]
[Termination "chess94cu won by resignation"]

1. e4 {[%clk 0:03:00.9]} 1... c6 {[%clk 0:02:55.4]} 2. d4 {[%clk 0:02:59.5]}
2... d5 {[%clk 0:02:56.3]} 3. exd5 {[%clk 0:03:00.1]} 3... cxd5 {[%clk 0:02:57]}
4. c4 {[%clk 0:03:00.8]} 4... Nf6 {[%clk 0:02:57.5]} 5. Nc3 {[%clk 0:03:01.5]}
5... e6 {[%clk 0:02:57]} 6. Nf3 {[%clk 0:03:00.7]} 6... Bb4 {[%clk 0:02:56.1]}
7. cxd5 {[%clk 0:03:01]} 7... Nxd5 {[%clk 0:02:56.9]} 8. Bd2 {[%clk 0:03:01.4]}
8... Nc6 {[%clk 0:02:56.4]} 9. Bd3 {[%clk 0:03:01.5]} 9... Be7 {[%clk
0:02:55.4]} 10. O-O {[%clk 0:03:00.2]} 10... O-O {[%clk 0:02:55.9]} 11. Re1
{[%clk 0:02:54.7]} 11... Bf6 {[%clk 0:02:54.1]} 12. Be3 {[%clk 0:02:54.1]} 12...
Nce7 {[%clk 0:02:47.5]} 13. Ne4 {[%clk 0:02:44.5]} 13... b6 {[%clk 0:02:44.4]}
14. Ne5 {[%clk 0:02:39.4]} 14... Bb7 {[%clk 0:02:40.8]} 15. Qh5 {[%clk
0:02:34.7]} 15... Ng6 {[%clk 0:02:20.6]} 16. Bg5 {[%clk 0:02:09.4]} 16... Bxg5
{[%clk 0:01:50.9]} 17. Nxg5 {[%clk 0:02:04.8]} 17... Nf6 {[%clk 0:01:51.4]} 18.
Qd1 {[%clk 0:01:02.1]} 18... Nf4 {[%clk 0:01:37.6]} 19. Re3 {[%clk 0:00:49.3]}
19... Nxg2 {[%clk 0:01:16.7]} 20. Rh3 {[%clk 0:00:26.2]} 20... h6 {[%clk
0:01:15.8]} 21. Rg3 {[%clk 0:00:19.3]} 21... Nf4 {[%clk 0:01:08.4]} 22. Qd2
{[%clk 0:00:18.2]} 22... hxg5 {[%clk 0:01:06.2]} 23. Rxg5 {[%clk 0:00:16.2]}
23... Nh3+ {[%clk 0:01:05.5]} 0-1